[Event "4NCL Div 1 2024-25"]
[Site "England"]
[Date "2025.02.16"]
[Round "6.30"]
[White "Dobrolyubov, Alexandr K"]
[Black "McKay, Roderick M"]
[Result "1-0"]
[Annotator "ChessBase"]
[ECO "B07"]
[WhiteElo "1951"]
[BlackElo "2177"]
[PlyCount "155"]
[EventDate "2024.11.23"]
[EventType "team-tourn"]
[EventCountry "ENG"]
[SourceTitle "playchess.com"]
[Source "ChessBase"]
[SourceQuality "1"]
[TimeControl "40/6000+30:3000+30"]

1. e4 {[%emt 0:10:30]} d6 {[%emt 0:10:22]} 2. d4 {[%emt 0:00:00]} Nf6 {[%emt 0:00:14]} 3. Nc3 {[%emt 0:00:00]} e5 {[%emt 0:00:16]} 4. dxe5 {[%emt 0:00:00]} dxe5 {[%emt 0:00:07]} 5. Qxd8+ {[%emt 0:00:00]} Kxd8 {[%emt 0:00:07]} 6. Be3 {[%emt 0:00:09]} c6 {[%emt 0:00:31]} 7. O-O-O+ {[%emt 0:00:13]} Kc7 {[%emt 0:00:14]} 8. Bc4 {[%emt 0:01:10]} Be6 {[%emt 0:02:14]} 9. Bxe6 {[%emt 0:00:09]} fxe6 {[%emt 0:00:04]} 10. f3 {[%emt 0:00:10]} Nbd7 {[%emt 0:00:31]} 11. Nh3 {[%emt 0:13:02]} h6 {[%emt 0:04:12]} 12. Nf2 {[%emt 0:00:03]} b5 {[%emt 0:04:45]} 13. Nd3 {[%emt 0:05:48]} Bd6 {[%emt 0:01:32]} 14. a4 {[%emt 0:24:29]} Rhb8 {[%emt 0:11:26]} 15. b3 {[%emt 0:01:29]} a5 {[%emt 0:01:19]} 16. Kb2 {[%emt 0:06:13]} Rb7 {[%emt 0:07:43]} 17. Ra1 {[%emt 0:03:09]} b4 {[%emt 0:01:32]} 18. Nb1 {[%emt 0:00:54]} c5 {[%emt 0:01:00]} 19. Nd2 {[%emt 0:00:11]} Kc6 {[%emt 0:03:13]} 20. Nc4 {[%emt 0:00:21]} Bc7 {[%emt 0:02:54]} 21. Rad1 {[%emt 0:01:00]} Rf8 {[%emt 0:01:56]} 22. Rd2 {[%emt 0:08:33]} Nh5 {[%emt 0:04:04]} 23. Rhd1 {[%emt 0:12:47]} Rf7 {[%emt 0:02:42]} 24. Ne1 {[%emt 0:04:14]} Re7 {[%emt 0:04:32]} 25. Rd6+ {[%emt 0:02:27]} Bxd6 {[%emt 0:00:30]} 26. Nxa5+ {[%emt 0:00:05]} Kb6 {[%emt 0:06:40]} 27. Nxb7 {[%emt 0:00:07]} Bb8 {[%emt 0:02:36]} 28. Nd6 {[%emt 0:00:08]} Kc6 {[%emt 0:00:26]} 29. Nc4 {[%emt 0:00:41]} g5 {[%emt 0:03:43]} 30. g3 {[%emt 0:05:28]} Nhf6 {[%emt 0:01:17]} 31. g4 {[%emt 0:00:27]} Rf7 {[%emt 0:01:08]} 32. Kc1 {[%emt 0:01:04]} Ne8 {[%emt 0:03:04]} 33. Kd2 {[%emt 0:00:11]} Nd6 {[%emt 0:02:52]} 34. Nxd6 {[%emt 0:00:07]} Bxd6 {[%emt 0:00:08]} 35. Ke2 {[%emt 0:00:05]} Nf8 {[%emt 0:00:51]} 36. Nd3 {[%emt 0:00:36]} Ng6 {[%emt 0:00:17]} 37. Nb2 {[%emt 0:00:26]} Bc7 {[%emt 0:02:49]} 38. Nc4 {[%emt 0:00:12]} Rh7 {[%emt 0:01:29]} 39. Rg1 {[%emt 0:07:15]} Bd8 {[%emt 0:04:06]} 40. Rd1 {[%emt 0:04:34]} Bc7 {[%emt 0:00:22]} 41. Kf2 {[%emt 0:51:26]} Nh4 {[%emt 0:57:18]} 42. Bc1 {[%emt 0:00:00]} Ng6 {[%emt 0:00:00]} 43. Bb2 {[%emt 0:00:00]} Rf7 {[%emt 0:00:00]} 44. Ke3 {[%emt 0:00:00]} Rf8 {[%emt 0:00:00]} 45. Kf2 {[%emt 0:00:00]} Rf7 {[%emt 0:00:00]} 46. Bc1 {[%emt 0:00:00]} Rh7 {[%emt 0:00:00]} 47. Kg3 {[%emt 0:00:00]} Rf7 {[%emt 0:00:00]} 48. Be3 {[%emt 0:00:00]} Nh4 {[%emt 0:00:00]} 49. Rf1 {[%emt 0:00:00]} Rf8 {[%emt 0:00:00]} 50. Bg1 {[%emt 0:00:00]} Rf7 {[%emt 0:00:00]} 51. h3 {[%emt 0:00:00]} Rf8 {[%emt 0:00:00]} 52. Bh2 {[%emt 0:00:00]} Rf7 {[%emt 0:00:00]} 53. Nd2 {[%emt 0:00:00]} Rd7 {[%emt 0:00:00]} 54. Rf2 {[%emt 0:00:00]} Bb6 {[%emt 0:00:00]} 55. Nc4 {[%emt 0:00:00]} Bc7 {[%emt 0:00:00]} 56. Rd2 {[%emt 0:00:00]} Rf7 {[%emt 0:00:00]} 57. Rd3 {[%emt 0:00:00]} Ng6 {[%emt 0:00:00]} 58. Kf2 {[%emt 0:00:00]} Rh7 {[%emt 0:00:00]} 59. Bg3 {[%emt 0:00:16]} Rh8 {[%emt 0:00:00]} 60. Rd1 {[%emt 0:00:33]} Rf8 {[%emt 0:00:00]} 61. Rh1 {[%emt 0:01:06]} Rh8 {[%emt 0:04:02]} 62. h4 {[%emt 0:02:46]} h5 {[%emt 0:01:37]} 63. hxg5 {[%emt 0:00:15]} h4 {[%emt 0:00:25]} 64. Bh2 {[%emt 0:00:21]} Rd8 {[%emt 0:00:07]} 65. Ke2 {[%emt 0:00:25]} Rd7 {[%emt 0:03:08]} 66. Nb2 {[%emt 0:00:35]} Rd4 {[%emt 0:02:36]} 67. Nd3 {[%emt 0:00:17]} Bd6 {[%emt 0:01:50]} 68. Bg1 {[%emt 0:00:17]} c4 {[%emt 0:00:12]} 69. Ne1 {[%emt 0:03:42]} Nf4+ {[%emt 0:02:18]} 70. Kf1 {[%emt 0:00:01]} Rd1 {[%emt 0:00:29]} 71. Be3 {[%emt 0:01:09]} Ng6 {[%emt 0:03:31]} 72. bxc4 {[%emt 0:00:36]} Bc5 {[%emt 0:00:38]} 73. Ke2 {[%emt 0:00:46]} Rd8 {[%emt 0:00:40]} 74. Nd3 {[%emt 0:00:21]} Bxe3 {[%emt 0:02:11]} 75. Kxe3 {[%emt 0:00:09]} Ra8 {[%emt 0:00:22]} 76. Nxb4+ {[%emt 0:01:30]} Kc5 {[%emt 0:01:02]} 77. Nd3+ {[%emt 0:00:02]} Kxc4 {[%emt 0:00:14]} 78. f4 {[%emt 0:00:06]} 1-0

[Event "4NCL Div 1 2024-25"]
[Site "England"]
[Date "2025.02.16"]
[Round "6.31"]
[White "Swanson, Stephen"]
[Black "McCarthy, Kevin C"]
[Result "1-0"]
[Annotator "ChessBase"]
[ECO "C00"]
[WhiteElo "2143"]
[BlackElo "1954"]
[PlyCount "91"]
[EventDate "2024.11.23"]
[EventType "team-tourn"]
[EventCountry "ENG"]
[SourceTitle "playchess.com"]
[Source "ChessBase"]
[SourceQuality "1"]
[TimeControl "40/6000+30:3000+30"]

1. e4 {[%emt 0:10:03]} e6 {[%emt 0:10:04]} 2. d3 {[%emt 0:00:34]} d5 {[%emt 0:00:08]} 3. Nd2 {[%emt 0:00:10]} c5 {[%emt 0:00:42]} 4. g3 {[%emt 0:00:45]} Nc6 {[%emt 0:00:05]} 5. Bg2 {[%emt 0:00:09]} Be7 {[%emt 0:00:40]} 6. f4 {[%emt 0:01:42]} Nf6 {[%emt 0:07:39]} 7. e5 {[%emt 0:01:45]} Nd7 {[%emt 0:00:16]} 8. Ngf3 {[%emt 0:00:09]} Qb6 {[%emt 0:00:24]} 9. a3 {[%emt 0:04:16]} f6 {[%emt 0:12:57]} 10. exf6 {[%emt 0:10:22]} Nxf6 {[%emt 0:01:01]} 11. c4 {[%emt 0:03:59]} O-O {[%emt 0:15:07]} 12. O-O {[%emt 0:05:42]} Bd6 {[%emt 0:05:17]} 13. Re1 {[%emt 0:04:04]} Bd7 {[%emt 0:03:06]} 14. Ne5 {[%emt 0:02:00]} Qc7 {[%emt 0:00:46]} 15. Ndf3 {[%emt 0:03:26]} d4 {[%emt 0:10:11]} 16. Bd2 {[%emt 0:03:31]} Rae8 {[%emt 0:05:27]} 17. Rb1 {[%emt 0:02:41]} a5 {[%emt 0:06:10]} 18. Qe2 {[%emt 0:04:20]} Re7 {[%emt 0:01:29]} 19. Bh3 {[%emt 0:05:16]} Bxe5 {[%emt 0:03:18]} 20. Nxe5 {[%emt 0:02:09]} Nxe5 {[%emt 0:02:44]} 21. Qxe5 {[%emt 0:01:18]} Qxe5 {[%emt 0:05:18]} 22. Rxe5 {[%emt 0:00:07]} b6 {[%emt 0:00:16]} 23. Rbe1 {[%emt 0:02:12]} Rfe8 {[%emt 0:00:25]} 24. b4 {[%emt 0:00:35]} axb4 {[%emt 0:07:40]} 25. axb4 {[%emt 0:00:07]} Rc8 {[%emt 0:02:26]} 26. bxc5 {[%emt 0:04:15]} bxc5 {[%emt 0:00:37]} 27. Ba5 {[%emt 0:01:49]} Rc6 {[%emt 0:01:28]} 28. Bg2 {[%emt 0:37:04]} Rc8 {[%emt 0:03:07]} 29. h3 {[%emt 0:00:00]} Ba4 {[%emt 0:02:53]} 30. R5e2 {[%emt 0:00:00]} Kf7 {[%emt 0:00:22]} 31. f5 {[%emt 0:00:00]} Bd7 {[%emt 0:01:23]} 32. g4 {[%emt 0:00:00]} h6 {[%emt 0:00:09]} 33. Bd2 {[%emt 0:00:00]} Ree8 {[%emt 0:00:53]} 34. fxe6+ {[%emt 0:00:00]} Rxe6 {[%emt 0:00:21]} 35. Rxe6 {[%emt 0:00:00]} Bxe6 {[%emt 0:00:07]} 36. Bf4 {[%emt 0:00:00]} g5 {[%emt 0:01:41]} 37. Bd6 {[%emt 0:00:00]} Ne8 {[%emt 0:00:28]} 38. Be5 {[%emt 0:00:00]} Ke7 {[%emt 0:00:44]} 39. Ra1 {[%emt 0:00:00]} Bd7 {[%emt 0:00:51]} 40. Ra6 {[%emt 0:00:00]} Be6 {[%emt 0:00:29]} 41. Ra7+ {[%emt 0:53:03]} Bd7 {[%emt 0:21:37]} 42. Bd5 {[%emt 0:00:00]} Rd8 {[%emt 0:05:21]} 43. Ra6 {[%emt 0:00:00]} h5 {[%emt 0:00:23]} 44. gxh5 {[%emt 0:00:00]} Bxh3 {[%emt 0:00:12]} 45. Be4 {[%emt 0:00:00]} Be6 {[%emt 0:01:23]} 46. h6 {[%emt 0:00:00]} 1-0

[Event "4NCL Div 1 2024-25"]
[Site "England"]
[Date "2025.02.16"]
[Round "6.32"]
[White "Morea, Georgiana-Steluta"]
[Black "Cooke, Suzie G."]
[Result "1/2-1/2"]
[Annotator "TA"]
[ECO "D30"]
[WhiteElo "1941"]
[BlackElo "1950"]
[PlyCount "38"]
[EventDate "2024.11.23"]
[EventType "team-tourn"]
[EventCountry "ENG"]
[SourceTitle "playchess.com"]
[Source "ChessBase"]
[SourceQuality "1"]
[TimeControl "40/6000+30:3000+30"]

{[%evp 13,38,32,45,0,8,4,79,86,77,68,81,72,73,73,81,0,0,-36,0,0,0,-23,8,-16,-9,-9,55]} 1. d4 {[%emt 0:10:35]} e6 {[%emt 0:10:09]} 2. c4 {[%emt 0:00:55]} d5 {[%emt 0:00:14]} 3. Nf3 {[%emt 0:01:02]} c5 {[%emt 0:00:26]} 4. cxd5 {[%emt 0:00:54]} exd5 {[%emt 0:00:14]} 5. g3 {[%emt 0:00:22]} Nc6 {[%emt 0:00:57]} 6. Bg2 {[%emt 0:00:29]} Nf6 {[%emt 0:00:48]} 7. O-O {[%emt 0:00:52]} h6 {[%emt 0:06:02]} 8. a3 {[%emt 0:03:31] D30: Queen's Gambit Declined: Systems without Nc3.} c4 {[%emt 0:00:39]} 9. Nc3 {[%emt 0:00:53]} Bf5 {[%emt 0:12:16]} (9... Be7 $11 {keeps the balance.}) 10. Ne5 $146 {[%emt 0:07:16] White is better.} ({Predecessor:} 10. b3 Ne4 11. Bb2 Nxc3 12. Bxc3 Be4 13. Ra2 Be7 14. bxc4 dxc4 15. d5 Qxd5 16. Rd2 {1-0 Kaniak,M (1887)-Nawrot,A (1967) POL-ch U18 Girls 2006 (9)}) 10... Be7 {[%emt 0:11:53] [#]} 11. Nxd5 $1 {[%emt 0:09:26]} Nxd5 {[%emt 0:00:26] [#]} 12. e4 $1 {[%emt 0:00:03]} Be6 {[%emt 0:03:18]} ({Not} 12... Nxe5 $2 13. dxe5 $18) 13. exd5 {[%emt 0:07:06]} Bxd5 {[%emt 0:00:11]} 14. Nxc6 {[%emt 0:03:05]} ({White should try} 14. Bxd5 $16 Qxd5 15. Nxc6 bxc6 16. Re1) 14... bxc6 $11 {[%emt 0:00:27]} 15. Qg4 {[%emt 0:00:26]} Bf6 {[%emt 0:03:20]} 16. Re1+ {[%emt 0:06:00]} Kf8 {[%emt 0:00:12]} 17. Bd2 {[%emt 0:11:49]} Bxg2 {[%emt 0:05:19]} 18. Bb4+ {[%emt 0:00:06]} Kg8 {[%emt 0:00:34]} 19. Kxg2 {[%emt 0:00:06]} Qxd4 {[%emt 0:02:17] Weighted Error Value: White=0.20 (precise) /Black=0.24 (precise)   Mistake:       	White=1     	Black=2      Inaccurate:     	White=1     	Black=2      OK:         	White=2     	Black=3      Best:        	White=2     	Black=2      Strong:       	White=1     	---} (19... Qd5+ $11 20. Qe4 g6) 1/2-1/2

[Event "4NCL Div 1 2024-25"]
[Site "England"]
[Date "2025.02.16"]
[Round "6.33"]
[White "Kovchan, Alexander"]
[Black "Larkin, Vladyslav"]
[Result "1/2-1/2"]
[Annotator "ChessBase"]
[ECO "B15"]
[WhiteElo "2453"]
[BlackElo "2455"]
[PlyCount "23"]
[EventDate "2024.11.23"]
[EventType "team-tourn"]
[EventCountry "ENG"]
[SourceTitle "playchess.com"]
[Source "ChessBase"]
[SourceQuality "1"]
[TimeControl "40/6000+30:3000+30"]

1. e4 {[%emt 0:10:09]} c6 {[%emt 0:10:42]} 2. d4 {[%emt 0:00:39]} d5 {[%emt 0:00:05]} 3. Nd2 {[%emt 0:00:28]} dxe4 {[%emt 0:00:26]} 4. Nxe4 {[%emt 0:00:12]} Nf6 {[%emt 0:00:04]} 5. Ng3 {[%emt 0:01:23]} e5 {[%emt 0:08:06]} 6. Nf3 {[%emt 0:15:13]} exd4 {[%emt 0:11:13]} 7. Qxd4 {[%emt 0:02:25]} Qxd4 {[%emt 0:00:30]} 8. Nxd4 {[%emt 0:00:09]} g6 {[%emt 0:05:18]} 9. Be2 {[%emt 0:01:20]} Bg7 {[%emt 0:00:12]} 10. O-O {[%emt 0:00:55]} O-O {[%emt 0:00:17]} 11. c3 {[%emt 0:00:41]} Re8 {[%emt 0:05:12]} 12. h3 {[%emt 0:05:32]} 1/2-1/2

[Event "4NCL Div 1 2024-25"]
[Site "England"]
[Date "2025.02.16"]
[Round "6.34"]
[White "Bottazzi, Ulysse"]
[Black "Macak, Stefan"]
[Result "1-0"]
[Annotator "ChessBase"]
[ECO "B85"]
[WhiteElo "2344"]
[BlackElo "2310"]
[PlyCount "63"]
[EventDate "2024.11.23"]
[EventType "team-tourn"]
[EventCountry "ENG"]
[SourceTitle "playchess.com"]
[Source "ChessBase"]
[SourceQuality "1"]
[TimeControl "40/6000+30:3000+30"]

1. e4 {[%emt 1:41:00]} c5 {[%emt 0:12:37]} 2. Nf3 {[%emt 0:00:00]} e6 {[%emt 0:00:33]} 3. d4 {[%emt 0:00:00]} cxd4 {[%emt 0:00:05]} 4. Nxd4 {[%emt 0:00:00]} a6 {[%emt 0:00:05]} 5. Be2 {[%emt 0:00:00]} Qc7 {[%emt 0:02:08]} 6. O-O {[%emt 0:00:00]} Nf6 {[%emt 0:00:31]} 7. Nc3 {[%emt 0:00:00]} Nc6 {[%emt 0:01:25]} 8. Be3 {[%emt 0:00:00]} Be7 {[%emt 0:00:50]} 9. f4 {[%emt 0:00:00]} d6 {[%emt 0:00:08]} 10. Qe1 {[%emt 0:00:00]} Bd7 {[%emt 0:02:19]} 11. Qg3 {[%emt 0:00:00]} O-O {[%emt 0:09:08]} 12. Kh1 {[%emt 0:00:00]} Nxd4 {[%emt 0:03:35]} 13. Bxd4 {[%emt 0:00:00]} Bc6 {[%emt 0:06:43]} 14. Rae1 {[%emt 0:00:00]} b5 {[%emt 0:12:25]} 15. a3 {[%emt 0:00:00]} Qb7 {[%emt 0:19:49]} 16. Bd3 {[%emt 0:00:00]} g6 {[%emt 0:04:58]} 17. f5 {[%emt 0:00:00]} e5 {[%emt 0:03:55]} 18. Be3 {[%emt 0:00:00]} b4 {[%emt 0:10:33]} 19. axb4 {[%emt 0:00:00]} Qxb4 {[%emt 0:00:13]} 20. Qh4 {[%emt 0:00:00]} d5 {[%emt 0:12:54]} 21. Bg5 {[%emt 0:00:00]} dxe4 {[%emt 0:03:59]} 22. Bxf6 {[%emt 0:00:00]} Bxf6 {[%emt 0:00:02]} 23. Qxf6 {[%emt 0:00:00]} exd3 {[%emt 0:00:10]} 24. Qxc6 {[%emt 0:00:00]} dxc2 {[%emt 0:00:40]} 25. Nd5 {[%emt 0:00:00]} Qxb2 {[%emt 0:00:49]} 26. Qf6 {[%emt 0:00:00]} Ra7 {[%emt 0:00:16]} 27. Ne7+ {[%emt 0:00:00]} Rxe7 {[%emt 0:00:01]} 28. Qxe7 {[%emt 0:00:00]} f6 {[%emt 0:02:37]} 29. fxg6 {[%emt 0:00:00]} hxg6 {[%emt 0:00:03]} 30. Qc7 {[%emt 0:00:00]} Rf7 {[%emt 0:01:11]} 31. Qc4 {[%emt 0:00:00]} Kg7 {[%emt 0:00:18]} 32. Rc1 {[%emt 0:00:00]} 1-0

[Event "4NCL Div 1 2024-25"]
[Site "England"]
[Date "2025.02.16"]
[Round "6.35"]
[White "Yoon, Jacob D"]
[Black "Maycock Bates, David Henry"]
[Result "1/2-1/2"]
[Annotator "ChessBase"]
[ECO "A50"]
[WhiteElo "2270"]
[BlackElo "2290"]
[PlyCount "123"]
[EventDate "2024.11.23"]
[EventType "team-tourn"]
[EventCountry "ENG"]
[SourceTitle "playchess.com"]
[Source "ChessBase"]
[SourceQuality "1"]
[TimeControl "40/6000+30:3000+30"]

1. d4 {[%emt 0:14:24]} Nf6 {[%emt 0:14:17]} 2. c4 {[%emt 0:01:10]} e6 {[%emt 0:00:23]} 3. g4 {[%emt 0:00:58]} d5 {[%emt 0:21:27]} 4. g5 {[%emt 0:00:10]} Ne4 {[%emt 0:07:58]} 5. Bg2 {[%emt 0:01:00]} Bb4+ {[%emt 0:12:58]} 6. Kf1 {[%emt 0:00:23]} Be7 {[%emt 0:01:04]} 7. h4 {[%emt 0:00:35]} f5 {[%emt 0:03:19]} 8. Nc3 {[%emt 0:04:01]} c6 {[%emt 0:06:24]} 9. Bf4 {[%emt 0:03:56]} Nd7 {[%emt 0:06:13]} 10. Rc1 {[%emt 0:01:40]} Nf8 {[%emt 0:09:41]} 11. Be5 {[%emt 0:06:28]} Kf7 {[%emt 0:01:40]} 12. e3 {[%emt 0:05:01]} h6 {[%emt 0:03:54]} 13. Nxe4 {[%emt 0:02:02]} fxe4 {[%emt 0:00:35]} 14. g6+ {[%emt 0:19:23]} Nxg6 {[%emt 0:07:07]} 15. Qh5 {[%emt 0:00:36]} Qe8 {[%emt 0:01:30]} 16. f3 {[%emt 0:00:13]} Rf8 {[%emt 0:01:28]} 17. fxe4 {[%emt 0:01:34]} Kg8+ {[%emt 0:00:07]} 18. Ke1 {[%emt 0:00:29]} Nf4 {[%emt 0:03:34]} 19. Qg4 {[%emt 0:01:21]} Nd3+ {[%emt 0:00:09]} 20. Kd2 {[%emt 0:00:48]} Nxe5 {[%emt 0:00:06]} 21. dxe5 {[%emt 0:00:04]} Qd8 {[%emt 0:00:51]} 22. Kc2 {[%emt 0:01:49]} dxc4 {[%emt 0:00:15]} 23. Rd1 {[%emt 0:01:00]} Qa5 {[%emt 0:00:35]} 24. Ne2 {[%emt 0:03:05]} Qxe5 {[%emt 0:01:05]} 25. Nf4 {[%emt 0:02:05]} Bf6 {[%emt 0:03:08]} 26. Rd4 {[%emt 0:03:28]} Qc5 {[%emt 0:00:01]} 27. e5 {[%emt 0:03:21]} Bxe5 {[%emt 0:00:39]} 28. Be4 {[%emt 0:00:49]} Rxf4 {[%emt 0:00:28]} 29. Rd8+ {[%emt 0:00:14]} Rf8 {[%emt 0:00:07]} 30. Rf1 {[%emt 0:02:16]} Rxd8 {[%emt 0:03:09]} 31. Qg6 {[%emt 0:00:10]} Rd2+ {[%emt 0:00:40]} 32. Kxd2 {[%emt 0:00:57]} c3+ {[%emt 0:00:01]} 33. Kc2 {[%emt 0:05:59]} cxb2+ {[%emt 0:00:23]} 34. Kb1 {[%emt 0:00:00]} Qc1+ {[%emt 0:00:50]} 35. Rxc1 {[%emt 0:00:02]} bxc1=Q+ {[%emt 0:01:54]} 36. Kxc1 {[%emt 0:00:07]} Bd7 {[%emt 0:00:00]} 37. Qh5 {[%emt 0:02:21]} Bf6 {[%emt 0:00:00]} 38. Bg6 {[%emt 0:01:20]} Be7 {[%emt 0:00:58]} 39. Bf7+ {[%emt 0:00:32]} Kf8 {[%emt 0:00:27]} 40. Qf3 {[%emt 0:00:46]} Bf6 {[%emt 0:00:24]} 41. Bg6 {[%emt 0:50:58]} Ke7 {[%emt 0:36:48]} 42. h5 {[%emt 0:00:00]} Rc8 {[%emt 0:01:29]} 43. Kb1 {[%emt 0:00:00]} b6 {[%emt 0:01:03]} 44. e4 {[%emt 0:00:00]} Be5 {[%emt 0:04:03]} 45. Qa3+ {[%emt 0:00:00]} c5 {[%emt 0:00:05]} 46. Qxa7 {[%emt 0:00:00]} b5 {[%emt 0:02:19]} 47. Kc2 {[%emt 0:00:00]} b4 {[%emt 0:01:27]} 48. Qa5 {[%emt 0:00:00]} Kd6 {[%emt 0:01:22]} 49. Qa6+ {[%emt 0:00:00]} Ke7 {[%emt 0:01:04]} 50. Qa5 {[%emt 0:00:00]} Rc7 {[%emt 0:01:20]} 51. Qa8 {[%emt 0:00:00]} Bc6 {[%emt 0:00:32]} 52. Qa5 {[%emt 0:00:00]} Kd6 {[%emt 0:00:40]} 53. Qb6 {[%emt 0:00:00]} Rc8 {[%emt 0:02:52]} 54. Kb3 {[%emt 0:00:00]} Ra8 {[%emt 0:00:13]} 55. Kc4 {[%emt 0:00:00]} Bd4 {[%emt 0:00:34]} 56. Bf7 {[%emt 0:00:00]} Rc8 {[%emt 0:01:41]} 57. Bg6 {[%emt 0:00:00]} Ke5 {[%emt 0:00:05]} 58. Qa6 {[%emt 0:00:00]} Rc7 {[%emt 0:00:24]} 59. Qb6 {[%emt 0:00:00]} Rc8 {[%emt 0:00:56]} 60. Qa6 {[%emt 0:00:00]} Rc7 {[%emt 0:00:53]} 61. Qb6 {[%emt 0:00:00]} Rc8 {[%emt 0:00:28]} 62. Qa6 {[%emt 0:00:00]} 1/2-1/2

[Event "4NCL Div 1 2024-25"]
[Site "England"]
[Date "2025.02.16"]
[Round "6.36"]
[White "Bezuidenhout, Roland"]
[Black "Badacsonyi, Stanley"]
[Result "1/2-1/2"]
[Annotator "ChessBase"]
[ECO "A08"]
[WhiteElo "2285"]
[BlackElo "2298"]
[PlyCount "54"]
[EventDate "2024.11.23"]
[EventType "team-tourn"]
[EventCountry "ENG"]
[SourceTitle "playchess.com"]
[Source "ChessBase"]
[SourceQuality "1"]
[TimeControl "40/6000+30:3000+30"]

1. e4 {[%emt 0:11:23]} e6 {[%emt 0:10:04]} 2. d3 {[%emt 0:01:27]} d5 {[%emt 0:00:14]} 3. Nd2 {[%emt 0:00:07]} c5 {[%emt 0:00:06]} 4. Ngf3 {[%emt 0:00:19]} Nc6 {[%emt 0:00:06]} 5. g3 {[%emt 0:00:10]} g6 {[%emt 0:00:04]} 6. Bg2 {[%emt 0:00:20]} Bg7 {[%emt 0:00:10]} 7. O-O {[%emt 0:00:12]} Nge7 {[%emt 0:00:03]} 8. Re1 {[%emt 0:00:07]} O-O {[%emt 0:00:10]} 9. c3 {[%emt 0:00:13]} Qc7 {[%emt 0:01:22]} 10. exd5 {[%emt 0:00:05]} exd5 {[%emt 0:01:02]} 11. Nb3 {[%emt 0:00:12]} b6 {[%emt 0:01:28]} 12. Bf4 {[%emt 0:00:06]} Qd8 {[%emt 0:02:07]} 13. d4 {[%emt 0:00:08]} c4 {[%emt 0:06:17]} 14. Nbd2 {[%emt 0:00:07]} Be6 {[%emt 0:00:55]} 15. Ne5 {[%emt 0:01:54]} Nxe5 {[%emt 0:02:03]} 16. Bxe5 {[%emt 0:00:28]} Rc8 {[%emt 0:00:18]} 17. Bxg7 {[%emt 0:01:25]} Kxg7 {[%emt 0:00:01]} 18. h4 {[%emt 0:01:01]} Qd6 {[%emt 0:03:04]} 19. Qe2 {[%emt 0:00:36]} Rfe8 {[%emt 0:12:50]} 20. Nf1 {[%emt 0:02:51]} Rcd8 {[%emt 0:03:01]} 21. Ne3 {[%emt 0:01:06]} h5 {[%emt 0:01:50]} 22. Qd2 {[%emt 0:06:42]} f6 {[%emt 0:03:26]} 23. Bf3 {[%emt 0:01:35]} Bf7 {[%emt 0:00:48]} 24. Re2 {[%emt 0:01:40]} Nc6 {[%emt 0:06:06]} 25. Rae1 {[%emt 0:03:05]} Qd7 {[%emt 0:04:38]} 26. Ng2 {[%emt 0:01:22]} Rxe2 {[%emt 0:00:20]} 27. Rxe2 {[%emt 0:00:08]} Qf5 {[%emt 0:07:28]} 1/2-1/2

[Event "4NCL Div 1 2024-25"]
[Site "England"]
[Date "2025.02.16"]
[Round "6.37"]
[White "Badacsonyi, Frankie"]
[Black "Banerjee, Supratit"]
[Result "1/2-1/2"]
[Annotator "ChessBase"]
[ECO "E70"]
[WhiteElo "2266"]
[BlackElo "2141"]
[PlyCount "118"]
[EventDate "2024.11.23"]
[EventType "team-tourn"]
[EventCountry "ENG"]
[SourceTitle "playchess.com"]
[Source "ChessBase"]
[SourceQuality "1"]
[TimeControl "40/6000+30:3000+30"]

1. d4 {[%emt 0:11:09]} Nf6 {[%emt 0:10:08]} 2. c4 {[%emt 0:00:06]} g6 {[%emt 0:00:05]} 3. Nc3 {[%emt 0:00:13]} Bg7 {[%emt 0:00:13]} 4. e4 {[%emt 0:00:18]} d6 {[%emt 0:00:07]} 5. Nge2 {[%emt 0:01:55]} O-O {[%emt 0:00:11]} 6. Ng3 {[%emt 0:00:11]} h5 {[%emt 0:00:09]} 7. Be2 {[%emt 0:00:48]} a5 {[%emt 0:01:28]} 8. h4 {[%emt 0:05:11]} Nc6 {[%emt 0:08:05]} 9. d5 {[%emt 0:06:03]} Ne5 {[%emt 0:00:39]} 10. Bg5 {[%emt 0:03:27]} Nh7 {[%emt 0:03:07]} 11. Be3 {[%emt 0:02:05]} Ng4 {[%emt 0:04:22]} 12. Bd4 {[%emt 0:03:27]} Bh6 {[%emt 0:00:27]} 13. Bxg4 {[%emt 0:05:58]} Bxg4 {[%emt 0:00:51]} 14. f3 {[%emt 0:00:04]} Bd7 {[%emt 0:02:16]} 15. Nf1 {[%emt 0:00:36]} e5 {[%emt 0:01:58]} 16. Be3 {[%emt 0:01:02]} Bg7 {[%emt 0:14:09]} 17. g4 {[%emt 0:05:17]} hxg4 {[%emt 0:01:27]} 18. fxg4 {[%emt 0:02:10]} f5 {[%emt 0:00:09]} 19. gxf5 {[%emt 0:00:39]} gxf5 {[%emt 0:00:15]} 20. exf5 {[%emt 0:00:37]} Kh8 {[%emt 0:07:18]} 21. Ng3 {[%emt 0:02:07]} e4 {[%emt 0:04:52]} 22. Bd4 {[%emt 0:01:53]} Qe7 {[%emt 0:00:17]} 23. Rg1 {[%emt 0:10:21]} Be5 {[%emt 0:01:20]} 24. Qd2 {[%emt 0:03:08]} b5 {[%emt 0:14:12]} 25. cxb5 {[%emt 0:01:43]} a4 {[%emt 0:00:33]} 26. O-O-O {[%emt 0:01:01]} a3 {[%emt 0:00:33]} 27. b3 {[%emt 0:02:00]} Rae8 {[%emt 0:06:03]} 28. Bxe5+ {[%emt 0:05:11]} Qxe5 {[%emt 0:00:17]} 29. Ngxe4 {[%emt 0:00:48]} Rxf5 {[%emt 0:01:01]} 30. Ng5 {[%emt 0:01:06]} Nxg5 {[%emt 0:07:23]} 31. Rxg5 {[%emt 0:00:30]} Rxg5 {[%emt 0:00:09]} 32. hxg5 {[%emt 0:00:05]} Kg8 {[%emt 0:04:39]} 33. Qd4 {[%emt 0:02:21]} Qxg5+ {[%emt 0:02:48]} 34. Kb1 {[%emt 0:00:06]} Qg2 {[%emt 0:02:54]} 35. Qg1 {[%emt 0:01:11]} Qxg1 {[%emt 0:01:26]} 36. Rxg1+ {[%emt 0:00:09]} Kf7 {[%emt 0:00:09]} 37. Rf1+ {[%emt 0:00:32]} Kg6 {[%emt 0:00:06]} 38. Rf4 {[%emt 0:00:38]} Re1+ {[%emt 0:00:47]} 39. Kc2 {[%emt 0:00:09]} Bf5+ {[%emt 0:00:19]} 40. Kd2 {[%emt 0:00:02]} Rh1 {[%emt 0:00:16]} 41. Rc4 {[%emt 0:51:02]} Rh7 {[%emt 0:50:20]} 42. Rc6 {[%emt 0:00:47]} Kf6 {[%emt 0:03:46]} 43. b6 {[%emt 0:00:59]} cxb6 {[%emt 0:00:06]} 44. Rxd6+ {[%emt 0:00:22]} Ke5 {[%emt 0:00:07]} 45. Rxb6 {[%emt 0:00:25]} Rh2+ {[%emt 0:00:12]} 46. Ke1 {[%emt 0:03:08]} Rh1+ {[%emt 0:00:08]} 47. Kf2 {[%emt 0:00:00]} Rh2+ {[%emt 0:00:00]} 48. Kg1 {[%emt 0:00:17]} Rc2 {[%emt 0:00:00]} 49. Rc6 {[%emt 0:02:19]} Bd7 {[%emt 0:05:57]} 50. Rc4 {[%emt 0:00:22]} Bf5 {[%emt 0:00:10]} 51. Rc7 {[%emt 0:07:37]} Kd4 {[%emt 0:05:56]} 52. Nb5+ {[%emt 0:09:06]} Kxd5 {[%emt 0:00:09]} 53. Ra7 {[%emt 0:06:32]} Kc5 {[%emt 0:00:00]} 54. Nxa3 {[%emt 0:00:00]} Rxa2 {[%emt 0:00:00]} 55. Ra4 {[%emt 0:00:00]} Bd3 {[%emt 0:00:00]} 56. b4+ {[%emt 0:00:00]} Kb6 {[%emt 0:00:00]} 57. Nc4+ {[%emt 0:00:00]} Bxc4 {[%emt 0:00:00]} 58. Rxa2 {[%emt 0:00:00]} Bxa2 {[%emt 0:00:00]} 59. b5 {[%emt 0:00:00]} Kxb5 {[%emt 0:00:00]} 1/2-1/2